Cogmind - Beta 14 @@@ ROGUE MODE // 2024.08.30 @ 12:02:19 Player: Minty Result: Destroyed by B-75 Beast with Heavy Plasma Cannon Performance ------------- Evolutions (5) 2500 Regions Visited (12) 2400 Robots Destroyed (157) 785 Value Destroyed (7232) 7232 Prototype IDs (39) 780 Alien Tech Used (0) 0 Bonus (3525) 3525 TOTAL SCORE: 17222 Bonus ------- High Alert Combat Kills 1860 Follower Combat Kills 1033 Entered Garrisons 600 Used RIF Installer 1500 Aligned with FarCom 300 Friendly Fire -1768 Cogmind --------- Core Integrity 0/1000 Matter 92/300 Energy 95/100 System Corruption 28% Temperature Cool (12) Movement Walking (190) Ox1 Location -5/Garrison Parts ------- > --- POWER (2) -------- (None) > --- PROPULSION (4) --- Flexi-carbon Leg > --- UTILITY (7) ------ Relay Coupler [NC] (27) Relay Coupler [Swarmer] (20) Relay Coupler [Grunt] (26) Relay Coupler [Grunt] (30) > --- WEAPON (4) ------- Heavy Assault Cannon Heavy Assault Cannon > --- INVENTORY (5) ---- Relay Coupler [Specialist] (22) Relay Coupler [Hunter] (19) Relay Coupler [Heavy] (11) PSU Rigger Tesla Bomb Launcher Peak State ------------ > --- POWER ------------ Light Angular Momentum Engine Light Fission Core > --- PROPULSION ------- Carbon-fiber Leg Flexi-carbon Leg Flexi-carbon Leg Improved VSS Leg > --- UTILITY ---------- Large Storage Unit Improved Melee Analysis Suite Phase Shifter Relay Coupler [NC] Relay Coupler [Grunt] Relay Coupler [Behemoth] PSU Rigger > --- WEAPON ----------- Tesla Bomb Launcher Remote Datajack Gravity Flail Phasing Sabre > --- INVENTORY -------- Improved Cooling System Relay Coupler [Swarmer] Relay Coupler [Grunt] Relay Coupler [Grunt] Relay Coupler [Duelist] Relay Coupler [Sentry] Relay Coupler [Heavy] Advanced System Restoration Module AWS/Thermal AWS/Autocannon Gravity Flail [Rating: 89] Favorites ----------- Power Light Angular Momentum Engine Engine Light Angular Momentum Engine Power Core Light Nuclear Core Propulsion Carbon-fiber Leg Treads Light Treads Leg Carbon-fiber Leg Wheel Armored Wheel Flight Unit VTOL Module Utility Large Storage Unit Device Shield Generator Storage Large Storage Unit Processor Improved Melee Analysis Suite Hackware Relay Coupler [NC] Protection Hardened Heavy Armor Plating Weapon Gravity Flail Energy Gun Heavy Gatling Laser Energy Cannon Beam Cannon Ballistic Gun Heavy Machine Gun Ballistic Cannon AWS/Autocannon Launcher YI-UF0's Doublenader Special Weapon Remote Datajack Impact Weapon Gravity Flail Slashing Weapon Phasing Sabre Build | -11 -10 -10 -10 -9 -8 -7 -6 -6 -6 -6 -5 -5 ------- Run | Yrd Mat Min Exi Min Mat Fac Fac Gar Fac Gar Fac Gar Slots Evolved 10 | . . . . . 4 2 2 . . . 2 . Power 1 | . . . . . . . 1 . . . . . Propulsion 2 | . . . . . 1 . 1 . . . . . Utility 5 | . . . . . 1 2 . . . . 2 . Weapon 2 | . . . . . 2 . . . . . . . Parts Attached 168 | . 15 4 2 3 17 41 7 19 4 14 10 32 Power 14 | . 1 . . . 1 4 2 2 . . 1 3 Engine 5 | . . . . . 1 2 . 2 . . . . Core 9 | . 1 . . . . 2 2 . . . 1 3 Reactor . | . . . . . . . . . . . . . Propulsion 39 | . 4 . . . 3 13 . 7 . 4 2 6 Treads 14 | . 4 . . . 3 6 . . . . . 1 Leg 21 | . . . . . . 7 . 7 . 4 1 2 Wheel 1 | . . . . . . . . . . . 1 . Hover . | . . . . . . . . . . . . . Flight 3 | . . . . . . . . . . . . 3 Utility 53 | . 6 . 1 . 4 9 2 6 1 9 3 12 Device 28 | . 5 . 1 . 1 7 1 5 . 5 1 2 Storage 1 | . 1 . . . . . . . . . . . Processor 3 | . . . . . . 2 . . 1 . . . Hackware 18 | . . . . . 2 . . . . 4 2 10 Protection 3 | . . . . . 1 . 1 1 . . . . Artifact . | . . . . . . . . . . . . . Weapon 62 | . 4 4 1 3 9 15 3 4 3 1 4 11 Energy Gun 12 | . . . . . . 8 2 1 . . . 1 Energy Cannon 4 | . 2 1 . . . . . . 1 . . . Ballistic Gun 7 | . . . . . . 3 1 . . . . 3 Ballistic Cannon 6 | . . . . . . 1 . 2 . . . 3 Launcher 11 | . . . . 1 7 . . . . . 2 1 Special Weapon 3 | . . . . . . . . . . . 2 1 Impact Weapon 18 | . 2 3 1 2 2 3 . 1 2 . . 2 Slashing Weapon 1 | . . . . . . . . . . 1 . . Piercing Weapon . | . . . . . . . . . . . . . Special Melee Weapon . | . . . . . . . . . . . . . Unidentified Prototypes 11 | . . . . 1 1 8 . . . . 1 . Corrupted Parts 4 | . . . . 1 . . . . . . . 3 System Corruption 23 | . . . . 3 . . . . . . . 20 Parts Lost 55 | . . . . . 1 15 3 9 . 4 . 23 Power 11 | . . . . . 1 4 . 2 . 1 . 3 Propulsion 18 | . . . . . . 4 . 5 . 1 . 8 Utility 14 | . . . . . . 3 1 1 . 2 . 7 Weapon 12 | . . . . . . 4 2 1 . . . 5 Highest Loss Streak 9 | . . . . . 1 4 2 5 . 3 . 9 To Critical Strikes . | . . . . . . . . . . . . . Average Slot Usage (%) 85 | . 97 100 100 100 93 76 62 76 91 89 96 70 Engine 3 | . 5 . . . 2 3 . 5 13 6 5 1 Core 4 | . 8 14 14 14 6 1 1 5 . . 3 2 Treads 11 | . 25 28 28 28 24 12 . . . . . . Leg 11 | . . . . . . 8 20 23 26 25 22 11 Device 11 | . 13 14 14 14 12 11 11 13 13 11 8 4 Storage 7 | . 14 14 14 14 9 7 6 6 6 6 5 1 Processor 3 | . . . . . . 4 12 6 6 6 5 4 Hackware 4 | . . . . . . . . . . 4 17 23 Protection 1 | . . . . . 2 3 . 2 6 . . . Energy Gun 2 | . . . . . . 5 7 5 . . . 1 Energy Cannon 1 | . 13 6 . . . . . . 1 2 . . Launcher 5 | . . . . . 26 10 . . . . 2 2 Impact Weapon 10 | . 13 21 28 28 9 5 . 4 16 20 9 3 Peak Build Rating 89 | . 14 14 19 21 37 76 75 87 70 76 88 89 Average Rating 46 | . 11 13 16 19 31 47 53 64 64 69 83 55 On Entrance 40 | 6 6 12 14 19 19 35 49 74 55 70 74 88 Naked Turns . | . . . . . . . . . . . . . Heaviest Build 94 | 11 33 33 31 32 61 89 69 94 58 58 58 65 Greatest Support 88 | 20 40 40 40 40 64 73 68 88 60 60 55 55 Greatest Overweight (x) 10 | . . . . . 1 10 1 5 . 1 1 5 Average Overweight (x) . | . . . . . . . . . . . . . Largest Inventory Capacity 15 | . 15 15 15 15 15 15 15 15 15 15 15 15 Average Capacity 14 | . 13 15 15 15 15 15 15 15 15 15 15 7 Most Carried 15 | . 15 15 15 15 15 15 15 15 15 15 15 15 Average Carried 13 | . 12 15 14 14 14 14 13 13 13 14 14 7 Final Capacity 15 | 8 15 15 15 15 15 15 15 15 15 15 15 5 Final Carried 15 | 6 15 15 15 15 15 15 9 15 13 15 15 5 Class Distribution -------------------- 36% | Mutant 12% | Skirmisher 11% | Bothacker-Gladiator 11% | Scavenger-Gladiator 10% | Scavenger-Mutant 8% | Gunner 6% | Tank Dominant Class ---------------- Mutant | -10/Materials Mutant | -10/Mines Mutant | -10/Exiles Mutant | -9/Mines Skirmisher | -8/Materials Tank | -7/Factory Mutant | -6/Factory Scavenger-Mutant | -6/Garrison Scavenger-Gladiator | -6/Factory Scavenger-Gladiator | -6/Garrison Bothacker-Gladiator | -5/Factory Mutant | -5/Garrison Resources | -11 -10 -10 -10 -9 -8 -7 -6 -6 -6 -6 -5 -5 ----------- Run | Yrd Mat Min Exi Min Mat Fac Fac Gar Fac Gar Fac Gar Matter Collected 3316 | 200 116 69 . 51 601 1216 90 209 . 235 95 434 Remotely 777 | . . . . . . 777 . . . . . . Salvage Created 5224 | . 503 35 . 164 802 1748 429 692 . 546 76 229 Parts 191 | . 26 . . 3 40 59 20 20 . 14 1 8 Haulers Intercepted 4 | . . . . . 3 1 . . . . . . Recyclers Shooed 3 | . . . . 1 . 2 . . . . . . Parts Field Recycled . | . . . . . . . . . . . . . Retrieved Matter . | . . . . . . . . . . . . . Parts Self-Destructed . | . . . . . . . . . . . . . Prevented . | . . . . . . . . . . . . . Kills | -11 -10 -10 -10 -9 -8 -7 -6 -6 -6 -6 -5 -5 ------- Run | Yrd Mat Min Exi Min Mat Fac Fac Gar Fac Gar Fac Gar Combat Hostiles Destroyed 115 | . 13 1 . . 19 38 7 17 . 11 . 9 Melee 10 | . 4 . . . 1 1 . . . 2 . 2 Guns 27 | . . . . . . 17 6 4 . . . . Cannons 25 | . 7 . . . . 1 . 10 . 2 . 5 AOE 29 | . . . . . 15 13 1 . . . . . Classes Destroyed 19 | . 6 . . 1 4 7 1 . . . . . Worker 8 | . 1 . . 1 5 1 . . . . . . Builder 6 | . . . . 1 1 3 . . . . 1 . Tunneler 2 | . . . . . 2 . . . . . . . Hauler 4 | . . . . . 3 1 . . . . . . Recycler 7 | . 1 . . 1 1 4 . . . . . . Mechanic 3 | . . . . . . 3 . . . . . . Operator 2 | . 1 . . . 1 . . . . . . . Watcher 7 | . 2 . . . 1 2 2 . . . . . Swarmer 18 | . 6 . . . . 2 . . . 3 . 7 Grunt 60 | . 7 1 . . 16 19 2 13 . 2 . . Brawler 3 | . . . . . 1 1 . 1 . . . . Duelist 3 | . . . . . . 2 . 1 . . . . Protector 1 | . . . . . . 1 . . . . . . Sentry 12 | . . . . . 2 3 . 1 . 6 . . Specialist 2 | . . . . . . 1 . . . . . 1 Hunter 9 | . . . . . . 4 3 1 . . 1 . Programmer 7 | . . . . . . 4 1 . . . . 2 Heavy 1 | . . . . . . 1 . . . . . . Behemoth 1 | . . . . . . . 1 . . . . . Best Kill Streak 10 | . 3 1 . 1 8 10 5 8 . 3 1 8 Combat Bots Only 8 | . 3 1 . . 5 8 4 8 . 3 . 8 Max Kills in Single Turn 5 | . 1 1 . 1 5 4 1 1 . 1 1 1 Gunslinging . | . . . . . . . . . . . . . Exploded 3 | . . . . . 3 3 1 . . . . . Melee 1 | . 1 . . . 1 1 . . . 1 . 1 Uniques/NPCs Destroyed 1 | . . . . 1 . . . . . . . . YI-UF0 (-9/Mines) Combat | -11 -10 -10 -10 -9 -8 -7 -6 -6 -6 -6 -5 -5 -------- Run | Yrd Mat Min Exi Min Mat Fac Fac Gar Fac Gar Fac Gar Hostile Shots Fired 1106 | . 64 29 . . 32 383 65 163 . 167 6 197 Missed 377 | . 17 9 . . 5 145 21 52 . 71 3 54 Damage Taken 11691 | . 407 191 . . 568 3105 1298 1916 . 974 195 3037 Core 2172 | . 36 51 . . 63 522 208 203 . 83 68 938 Absorbed by Shields 515 | . 98 74 . . 29 314 . . . . . . Regen/Repaired (Parts) 406 | . 253 . . . . 153 . . . . . . Core Remaining (%) 63 | 100 . . . 65 88 25 . . . 41 . . Volleys Fired 194 | . 19 6 . . 14 43 24 30 . 16 3 39 Largest 3 | . 2 2 . . 3 3 2 1 . 1 1 2 Hottest 200 | . 120 120 . . 133 200 128 100 . 63 5 120 Shots Fired 414 | . 38 9 . . 40 118 73 57 . 16 3 60 Gun 205 | . . . . . . 95 73 32 . . . 5 Cannon 125 | . 38 9 . . . 4 . 25 . 16 . 33 Launcher 60 | . . . . . 40 19 . . . . . 1 Special 24 | . . . . . . . . . . . 3 21 Kinetic 89 | . . . . . . 19 7 25 . . . 38 Thermal 225 | . 38 9 . . . 80 66 32 . . . . Explosive 59 | . . . . . 40 19 . . . . . . Electromagnetic 17 | . . . . . . . . . . 16 . 1 Robot Hit Streak 17 | . 11 5 . . 5 17 12 17 . 10 13 16 Robot Miss Streak 5 | . 3 2 . . 3 5 4 3 . 1 . 4 Penetration Max . | . . . . . . . . . . . . . Secondary Targets . | . . . . . . . . . . . . . Autonomous 161 | . . . . . . 80 45 26 . . . 10 Shots Hit Robots 455 | . 40 15 . 7 30 142 69 58 . 36 5 53 Core Hits 225 | . 15 1 . . 67 81 22 28 . 6 . 5 Critical Kills 5 | . 2 . . . 2 . . . . 1 . . Critical Parts Destroyed 27 | . 1 1 . . 3 8 1 2 . 6 . 5 Critical Strikes 44 | . 3 1 . . 5 9 1 7 . 8 . 10 Destroy 1 | . . . . . . . 1 . . . . . Blast 10 | . . . . . . . . 5 . . . 5 Corrupt 1 | . . . . . . . . . . 1 . . Smash 32 | . 3 1 . . 5 9 . 2 . 7 . 5 Melee Attacks 199 | . 21 9 . 7 18 53 . 12 . 53 4 22 Impact 193 | . 21 9 . 7 18 53 . 12 . 49 3 21 Slashing 6 | . . . . . . . . . . 4 1 1 Piercing . | . . . . . . . . . . . . . Sneak Attacks 25 | . 3 . . 7 4 7 . . . 2 2 . Combat Hostiles 2 | . . . . . . . . . . 2 . . Follow-up Attacks 12 | . 3 2 . 1 . . . . . 6 . . Damage Inflicted 21536 | . 1075 390 . 541 2965 7302 2030 3115 . 1578 229 2311 Guns 5283 | . . . . . . 2436 1941 841 . . . 65 Cannons 4544 | . 417 106 . . . 364 . 1800 . 311 . 1546 Explosions 5150 | . . . . . 2427 2618 87 . . . . 18 Melee 6542 | . 650 284 . 541 538 1877 . 474 . 1267 229 682 Ramming 17 | . 8 . . . . 7 2 . . . . . Kinetic 4192 | . . . . . . 658 123 1800 . . . 1611 Thermal 5525 | . 417 106 . . . 2256 1905 841 . . . . Explosive 4931 | . . . . . 2427 2504 . . . . . . Electromagnetic 329 | . . . . . . . . . . 311 . 18 Impact 6498 | . 650 284 . 541 538 1877 . 474 . 1223 229 682 Slashing 44 | . . . . . . . . . . 44 . . Piercing . | . . . . . . . . . . . . . Highest Corruption 28 | . . . . 3 . 3 5 5 5 5 . 28 Average Corruption 5 | . . . . 3 . 1 4 5 5 5 . 17 Corruption Purged 2 | . . . . . . 2 . . . . . . Corruption Blocked . | . . . . . . . . . . . . . Effects 95 | . . . . 5 . 8 7 22 1 30 . 22 Message Errors 20 | . . . . 2 . 2 2 5 . 5 . 4 Matter Fused 21 | . . . . . . 1 2 3 . 7 . 8 Heat Flow Errors 12 | . . . . 1 . 2 . 2 1 5 . 1 Energy Discharges 14 | . . . . . . . . 5 . 7 . 2 Parts Rejected 1 | . . . . . . . . . . . . 1 Parts Fused 1 | . . . . . . . . . . . . 1 Data Loss (minor) 12 | . . . . 1 . 3 1 2 . 3 . 2 Data Loss (major) 5 | . . . . . . . 1 1 . 2 . 1 Misfires 3 | . . . . . . . . 3 . . . . Alerts 2 | . . . . 1 . . . . . 1 . . Misdirections 1 | . . . . . . . . . . . . 1 Weapon Failures 3 | . . . . . . . 1 1 . . . 1 Overload Shots . | . . . . . . . . . . . . . Overflow Damage 2927 | . 125 63 . 194 128 1015 76 303 . 515 74 434 Projectiles 346 | . . 10 . . . 69 . 96 . 39 . 132 Explosions 378 | . . . . . 8 294 76 . . . . . Melee 2203 | . 125 53 . 194 120 652 . 207 . 476 74 302 Knockbacks 39 | . 3 . . 4 3 10 . 6 . 2 2 9 Impact 29 | . 3 . . 4 3 10 . . . 1 2 6 Kinetic 9 | . . . . . . . . 6 . . . 3 Secondary 1 | . . . . . . . . . . 1 . . Self-Inflicted Damage 860 | . . . . . 139 355 366 . . . . . Shots 27 | . . . . . 11 11 5 . . . . . Rammed 4 | . 4 . . . . . . . . . . . Targets Rammed 6 | . 4 . . . . 1 1 . . . . . Kicked 2 | . . . . . . 1 1 . . . . . Crushed . | . . . . . . . . . . . . . Highest Temperature 474 | . 345 233 . 222 250 396 382 474 177 165 . 111 Average Temperature 132 | . 129 96 . 113 97 138 144 255 120 67 . 24 Received Heat Transfer 2644 | . 158 113 . . 231 679 156 845 . 261 12 189 Effects 7 | . . . . . . 2 3 2 . . . . Shutdowns 5 | . . . . . . 1 2 2 . . . . Energy Bleed 2 | . . . . . . 1 1 . . . . . Siege Activations . | . . . . . . . . . . . . . Robots Corrupted 30 | . 3 . . 3 3 8 . 2 . 7 2 2 Combat Hostiles 20 | . 1 . . . 3 5 . 2 . 7 . 2 Parts Fried 36 | . 5 . . 7 2 6 . 2 . 9 4 1 Impact Corruptions 82 | . 10 2 . 7 3 25 . 5 . 15 4 11 Robots Melted 4 | . 1 1 . . . 1 . 1 . . . . Combat Hostiles 4 | . 1 1 . . . 1 . 1 . . . . Parts Melted 19 | . 1 1 . . 1 13 2 1 . . . . Heat Transferred 7572 | . 888 222 . . . 2532 2530 1400 . . . . Parts Sabotaged . | . . . . . . . . . . . . . Parts Stolen . | . . . . . . . . . . . . . Parts Stripped . | . . . . . . . . . . . . . Power Chain Reactions . | . . . . . . . . . . . . . Alert | -11 -10 -10 -10 -9 -8 -7 -6 -6 -6 -6 -5 -5 ------- Run | Yrd Mat Min Exi Min Mat Fac Fac Gar Fac Gar Fac Gar Peak Influence 1454 | . 317 233 . 15 926 1273 754 934 485 1454 892 757 Initial 763 | . . 123 . . 5 420 597 475 485 339 763 484 Average 606 | . 207 171 . 7 239 861 633 703 485 994 830 651 Maximum Alert Level 4 | . 1 1 . . 3 4 3 3 2 4 3 3 Low Security (%) 19 | . 46 54 . 100 62 . . . . . . . Level 1 8 | . 53 45 . . 12 . . . . . . . Level 2 34 | . . . . . 20 38 90 51 100 27 6 66 Level 3 25 | . . . . . 4 32 9 48 . 26 93 33 Level 4 11 | . . . . . . 29 . . . 45 . . Level 5 . | . . . . . . . . . . . . . High Security . | . . . . . . . . . . . . . Max Security . | . . . . . . . . . . . . . Squads Dispatched 31 | . 1 . . . 7 16 5 . . . 2 . Investigation 9 | . . . . . 2 5 1 . . . 1 . Extermination 4 | . . . . . . 3 1 . . . . . Reinforcement 7 | . 1 . . . 2 2 1 . . . 1 . Assault 5 | . . . . . 1 3 1 . . . . . Garrison 6 | . . . . . 2 3 1 . . . . . Intercept . | . . . . . . . . . . . . . Searches Triggered . | . . . . . . . . . . . . . Construction Impeded 1 | . . . . . 1 . . . . . . . Haulers Reinforced 1 | . . . . . . . 1 . . . . . Active Scanning Responses . | . . . . . . . . . . . . . Cargo Convoy Interrupts 1 | . . . . . . 1 . . . . . . Stealth | -11 -10 -10 -10 -9 -8 -7 -6 -6 -6 -6 -5 -5 --------- Run | Yrd Mat Min Exi Min Mat Fac Fac Gar Fac Gar Fac Gar Distress Signals 3 | . 2 . . . 1 . . . . . . . Communications Jammed . | . . . . . . . . . . . . . Distress Signals . | . . . . . . . . . . . . . Times Spotted 200 | . 21 6 . . 31 52 11 22 . 26 4 27 Peak Tracking Total 10 | . 4 2 . . 6 8 5 10 . 3 2 8 Tactical Retreats 11 | . 3 4 . . 1 1 . 1 . . . 1 Traps | -11 -10 -10 -10 -9 -8 -7 -6 -6 -6 -6 -5 -5 ------- Run | Yrd Mat Min Exi Min Mat Fac Fac Gar Fac Gar Fac Gar Traps Triggered 6 | . . . . . . 2 2 2 . . . . Indirectly . | . . . . . . . . . . . . . Trap Hack Attempts . | . . . . . . . . . . . . . Triggered . | . . . . . . . . . . . . . Disarmed . | . . . . . . . . . . . . . Reprogrammed . | . . . . . . . . . . . . . Reused . | . . . . . . . . . . . . . Traps Extracted . | . . . . . . . . . . . . . Installed . | . . . . . . . . . . . . . Triggered . | . . . . . . . . . . . . . Objects Rigged 15 | . 4 . . . . 2 . 2 . 4 . 3 Exploded 5 | . . . . . . 1 . 1 . . . 3 Machines | -11 -10 -10 -10 -9 -8 -7 -6 -6 -6 -6 -5 -5 ---------- Run | Yrd Mat Min Exi Min Mat Fac Fac Gar Fac Gar Fac Gar Machines Disabled 28 | . 1 . . . 6 7 5 1 . 4 2 2 Max in Single Turn 5 | . 1 . . . 2 2 5 1 . 1 . 1 Garrison Access 1 | . . . . . 1 . . . . . . . Garrison Relay 7 | . . . . . . . . 1 . 4 . 2 Machines Repaired . | . . . . . . . . . . . . . Machines Dismantled . | . . . . . . . . . . . . . Machines Sabotaged . | . . . . . . . . . . . . . Overloaded Fab Kills . | . . . . . . . . . . . . . Hacking | -11 -10 -10 -10 -9 -8 -7 -6 -6 -6 -6 -5 -5 --------- Run | Yrd Mat Min Exi Min Mat Fac Fac Gar Fac Gar Fac Gar Machines Accessed 36 | . 8 . 2 . 5 6 7 1 1 3 3 . Terminals 17 | . 6 . . . 1 2 3 1 . 3 1 . Fabricators 4 | . . . . . . 1 2 . . . 1 . Repair Stations 3 | . 1 . . . . 2 . . . . . . Recycling Units 4 | . 1 . . . 2 . 1 . . . . . Scanalyzers 1 | . . . . . 1 . . . . . . . Garrison Access 5 | . . . . . 1 1 1 . 1 . 1 . Total Hacks 92 | . 29 . 2 . 14 15 12 2 1 8 9 . Successful 44 | . 15 . 2 . 9 6 3 2 1 3 3 . Failed 48 | . 14 . . . 5 9 9 . . 5 6 . Catastrophic 17 | . 3 . . . . 5 4 . . 2 3 . Database Lockouts . | . . . . . . . . . . . . . Manual 37 | . 12 . 1 . 6 10 4 1 . 1 2 . Terminals 49 | . 20 . . . 5 6 6 2 . 8 2 . Fabricators 10 | . . . . . . 2 3 . . . 5 . Repair Stations 12 | . 7 . . . . 5 . . . . . . Recycling Units 7 | . 2 . . . 4 . 1 . . . . . Scanalyzers 3 | . . . . . 3 . . . . . . . Garrison Access 9 | . . . . . 2 2 2 . 1 . 2 . Terminal Hacks 14 | . 4 . 2 . 2 2 . 1 . 3 . . Record 1 | . . . 1 . . . . . . . . . Prototype ID Bank 2 | . 1 . . . . 1 . . . . . . Open Door 1 | . . . . . . . . . . 1 . . Emergency Access Points 1 | . . . . . . . . . . 1 . . Terminal Index 1 | . . . . . . 1 . . . . . . Alert Level 1 | . 1 . . . . . . . . . . . Locate Traps 2 | . 1 . . . 1 . . . . . . . Patrol Status 1 | . 1 . . . . . . . . . . . Zone Layout 1 | . . . . . 1 . . . . . . . Garrison Registry 1 | . . . . . . . . . . 1 . . Security Stations 1 | . . . . . . . . 1 . . . . Derelict Proto ID Bank 1 | . . . 1 . . . . . . . . . Fabricator Hacks 3 | . . . . . . . 1 . . . 2 . Network Status 2 | . . . . . . . 1 . . . 1 . Build 1 | . . . . . . . . . . . 1 . Repair Station Hacks 6 | . 6 . . . . . . . . . . . Scan Component 3 | . 3 . . . . . . . . . . . Repair 3 | . 3 . . . . . . . . . . . Recycling Unit Hacks 5 | . 2 . . . 3 . . . . . . . Report Inventory 3 | . 1 . . . 2 . . . . . . . Retrieve Components 2 | . 1 . . . 1 . . . . . . . Scanalyzer 2 | . . . . . 2 . . . . . . . Insert Component 2 | . . . . . 2 . . . . . . . Garrison Access Hacks 3 | . . . . . . . 1 . 1 . 1 . Unlock Access 3 | . . . . . . . 1 . 1 . 1 . Unauthorized Hacks 11 | . 3 . . . 2 4 1 1 . . . . Terminals 8 | . 3 . . . 1 2 1 1 . . . . Botnet 4 | . 1 . . . 1 1 1 . . . . . Detonate 2 | . 1 . . . . 1 . . . . . . Operators 1 | . 1 . . . . . . . . . . . Override 1 | . . . . . . . . 1 . . . . Fabricators . | . . . . . . . . . . . . . Repair Stations 2 | . . . . . . 2 . . . . . . Patch 2 | . . . . . . 2 . . . . . . Recycling Units . | . . . . . . . . . . . . . Scanalyzers . | . . . . . . . . . . . . . Garrison Access 1 | . . . . . 1 . . . . . . . Reprogram 1 | . . . . . 1 . . . . . . . Data Cores Recovered . | . . . . . . . . . . . . . Used . | . . . . . . . . . . . . . Hacking Detections 30 | . 7 . . . 3 6 6 1 1 3 3 . Full Trace Events 10 | . 2 . . . 1 3 1 . . 2 1 . Feedback Events 1 | . . . . . . 1 . . . . . . Corruption 1 | . . . . . . 1 . . . . . . Feedback Blocked . | . . . . . . . . . . . . . Robot Schematics Acquired . | . . . . . . . . . . . . . Robots Built . | . . . . . . . . . . . . . Authchips . | . . . . . . . . . . . . . Time . | . . . . . . . . . . . . . Total Robot Build Rating . | . . . . . . . . . . . . . Part Schematics Acquired . | . . . . . . . . . . . . . Parts Built 2 | . . . . . . . . . . . 2 . Authchips . | . . . . . . . . . . . . . Time 117 | . . . . . . . . . . . 117 . Total Part Build Rating 14 | . . . . . . . . . . . 14 . Parts Repaired 3 | . 3 . . . . . . . . . . . Time 84 | . 84 . . . . . . . . . . . Parts Recycled . | . . . . . . . . . . . . . Recycled Matter . | . . . . . . . . . . . . . Retrieved Matter . | . . . . . . . . . . . . . Retrieved Components 10 | . 9 . . . 1 . . . . . . . Parts Scanalyzed 1 | . . . . . 1 . . . . . . . Part Schematics Acquired . | . . . . . . . . . . . . . Parts Damaged . | . . . . . . . . . . . . . Bothacking | -11 -10 -10 -10 -9 -8 -7 -6 -6 -6 -6 -5 -5 ------------ Run | Yrd Mat Min Exi Min Mat Fac Fac Gar Fac Gar Fac Gar Used RIF Installer 3 | . . . . . . . . 1 . 1 . 1 Signal Jammer 1 | . . . . . . . . . . . . 1 Program Shield 1 | . . . . . . . . . . 1 . . Robots Hacked 12 | . . . . . . . . . . . 2 10 Non-combat . | . . . . . . . . . . . . . Combat 12 | . . . . . . . . . . . 2 10 Robot Hacks Applied 16 | . . . . . . . . . . . 3 13 parse_system 1 | . . . . . . . . . . . . 1 mark_system 1 | . . . . . . . . . . . 1 . spike_heat 3 | . . . . . . . . . . . . 3 overload_power 1 | . . . . . . . . . . . . 1 amplify_resonance 1 | . . . . . . . . . . . . 1 overwrite_iff 2 | . . . . . . . . . . . . 2 streamctrl_high 1 | . . . . . . . . . . . 1 . formatsys_high 6 | . . . . . . . . . . . 1 5 Relay Couplers Released 34 | . . . . . 2 . . 4 . 18 . 10 Machine Destruction 34 | . . . . . 2 . . 4 . 18 . 10 Attached 16 | . . . . . . . . . . 4 2 10 Fabnet Peak Effective % . | . . . . . . . . . . . . . Robots Rewired 1 | . . . . . . . . . . 1 . . Allies Hacked . | . . . . . . . . . . . . . Hacks Repelled . | . . . . . . . . . . . . . Allies | -11 -10 -10 -10 -9 -8 -7 -6 -6 -6 -6 -5 -5 -------- Run | Yrd Mat Min Exi Min Mat Fac Fac Gar Fac Gar Fac Gar Total Allies 18 | . . . . 3 1 . . . . 5 2 7 Largest Group 6 | . . . . 3 3 . . . . 4 4 6 Highest-Rated Group 317 | . . . . 40 40 . . . . 274 251 317 Highest-Rated Ally 95 | . . . . 16 16 . . . . 95 95 95 Total Orders . | . . . . . . . . . . . . . Ally Attacks 164 | . . . . . 39 . . . . 67 15 43 Total Damage 5165 | . . . . . 391 . . . . 2144 645 1985 Kills 31 | . . . . . 6 . . . . 15 3 7 Allies Corrupted 1 | . . . . . . . . . . . 1 . Allies Melted . | . . . . . . . . . . . . . Intel | -11 -10 -10 -10 -9 -8 -7 -6 -6 -6 -6 -5 -5 ------- Run | Yrd Mat Min Exi Min Mat Fac Fac Gar Fac Gar Fac Gar Robot Analysis Total . | . . . . . . . . . . . . . Derelict Logs Recovered 1 | . . . . 1 . . . . . . . . Drone Launches . | . . . . . . . . . . . . . Drone Recoveries . | . . . . . . . . . . . . . Exploration | -11 -10 -10 -10 -9 -8 -7 -6 -6 -6 -6 -5 -5 ------------- Run | Yrd Mat Min Exi Min Mat Fac Fac Gar Fac Gar Fac Gar Turns Passed 7143 | . 752 171 368 335 883 1267 493 713 68 957 427 709 Spaces Moved 3886 | 1 320 82 225 191 436 561 247 434 51 615 288 435 Core 58 | . . . . . . 7 . . . . . 51 Treads 1542 | . 301 82 225 191 436 307 . . . . . . Legs 2146 | 1 19 . . . . 247 247 434 51 615 288 244 Wheels . | . . . . . . . . . . . . . Hover . | . . . . . . . . . . . . . Flight 140 | . . . . . . . . . . . . 140 Fastest Speed 29 | 120 120 160 160 160 150 120 120 120 120 110 110 29 Average Speed 141 | 120 157 160 160 160 167 148 170 131 120 115 137 106 Slowest Speed 550 | 120 160 160 160 160 240 550 190 470 120 190 186 450 Overloaded Moves . | . . . . . . . . . . . . . Propulsion Burnouts . | . . . . . . . . . . . . . Robots Hopped . | . . . . . . . . . . . . . Cave-ins Triggered . | . . . . . . . . . . . . . Exploration Rate (%) 33 | 2 64 22 61 45 39 16 7 50 2 80 9 44 Regions Visited 12 Branch Regions 3 Pre-discovered Areas 2 | . . . 1 1 . . . . . . . . Known Exits Taken 4 | . . . . . . 1 1 . 1 . 1 . Unknown Exits Taken 6 | 1 1 1 1 1 1 . . . . . . . Scrap Searched 4 | . . 1 . 3 . . . . . . . . Spaces Dug 2 | . . . . . 1 . . . . . . 1 Terrain Destroyed 501 | . . . . . 271 148 71 4 . . . 7 Melee 2 | . . . . . 1 . . . . . . 1 Projectile 19 | . . . . . . 8 1 4 . . . 6 AOE 480 | . . . . . 270 140 70 . . . . . Terrain Rammed . | . . . . . . . . . . . . . Walls Destroyed . | . . . . . . . . . . . . . Machines Disabled . | . . . . . . . . . . . . . Actions | -11 -10 -10 -10 -9 -8 -7 -6 -6 -6 -6 -5 -5 --------- Run | Yrd Mat Min Exi Min Mat Fac Fac Gar Fac Gar Fac Gar Total 4967 | . 494 98 236 210 527 836 285 522 56 799 308 596 Wait 352 | . 94 . . 3 25 113 6 . 1 71 3 36 Move 3876 | . 319 81 224 190 435 560 246 433 51 614 288 435 Hop . | . . . . . . . . . . . . . Pick Up 77 | . 15 . 3 4 8 9 . 7 . 18 2 11 Fast Attach 65 | . 6 . . . 2 17 2 10 1 4 2 21 Attach 38 | . 2 . . . 4 8 4 6 2 4 2 6 Detach 19 | . . . . . 2 3 1 6 . 2 . 5 Swap 65 | . 7 4 2 3 11 16 1 3 1 6 6 5 Drop 75 | . 10 . 7 4 8 13 . 3 . 19 . 11 Fire 194 | . 19 6 . . 14 43 24 30 . 16 3 39 Melee 177 | . 18 7 . 6 18 53 . 12 . 39 2 22 Ram . | . . . . . . . . . . . . . Kick 2 | . . . . . . 1 1 . . . . . Crush 4 | . 4 . . . . . . . . . . . Escape Stasis 10 | . . . . . . . . 10 . . . . Rewire 4 | . . . . . . . . . . 2 . 2 Trap 9 | . . . . . . . . 2 . 4 . 3 Miscellaneous . | . . . . . . . . . . . . . Route ------- -11/Scrapyard -10/Materials (discovered 2 exits: [*Min x2]) -10/Mines (discovered 2 exits: [*Mat] / *Exi) -10/Exiles (discovered 2 exits: [*Min x2]) -9/Mines -8/Materials -7/Factory -6/Factory -6/Garrison (discovered 3 exits: *Fac x3) -6/Factory -6/Garrison (discovered 3 exits: *Fac x3) -5/Factory (discovered 2 exits: [*Upp] / Gar) -5/Garrison History --------- Turn | Location | Event 1 | -11/Scrapyard | Discovered new exit (range 0) 1 | -11/Scrapyard | Entered Materials 130 | -10/Materials | Discovered new exit (range 16) 335 | -10/Materials | Build established: Mutant 620 | -10/Materials | Discovered new exit (range 16) 665 | -10/Materials | Repaired Lgt. Treads 693 | -10/Materials | Repaired Lgt. Treads 726 | -10/Materials | Repaired Shield Generator 753 | -10/Materials | Entered Mines 878 | -10/Mines | Discovered new exit (range 12) 916 | -10/Mines | Deemed a non-threat by the Exiles lab entrance 918 | -10/Mines | Discovered new exit (range 5) 924 | -10/Mines | Entered Exiles 950 | -10/Exiles | Discovered new exit (range 15) 968 | -10/Exiles | Met 8R-AWN 992 | -10/Exiles | Met EX-HEX 1033 | -10/Exiles | Met EX-BIN 1056 | -10/Exiles | Aligned with FarCom system 1057 | -10/Exiles | Given EX-Vault access code 1097 | -10/Exiles | Opened EX-Vault 1107 | -10/Exiles | Found AWS/Autocannon 1115 | -10/Exiles | Found PSU Rigger 1126 | -10/Exiles | Found AWS/Thermal 1169 | -10/Exiles | Warned to stay clear of 0b10 Research branches 1218 | -10/Exiles | Met EX-DEC 1229 | -10/Exiles | Learned location of Zion (-7) 1279 | -10/Exiles | Discovered new exit (range 10) 1292 | -10/Exiles | Stole three prototypes: PSU Rigger, AWS/Thermal, AWS/Autocannon 1292 | -10/Exiles | Entered Mines 1365 | -9/Mines | YI-UF0 nonchalantly dropped a Grenade Launcher on the ground 1381 | -9/Mines | Murdered YI-UF0 1385 | -9/Mines | Found Corrupted Prototype Launcher 1385 | -9/Mines | Identified YI-UF0's Doublenader 1493 | -9/Mines | Assisted by bots powering up and referring to "LRC-V3" 1600 | -9/Mines | Discovered new exit (range 12) 1627 | -9/Mines | Entered Materials 1627 | -8/Materials | Accompanied by 3 allies 1627 | -8/Materials | Evolved 4 slots: Propulsion x1, Utility x1, Weapon x2 1918 | -8/Materials | Build established: Skirmisher 2051 | -8/Materials | Discovered new exit (range 15) 2303 | -8/Materials | Lost 3 allies 2318 | -8/Materials | Garrison activated, responded to threat 2510 | -8/Materials | Entered Factory 2510 | -7/Factory | Evolved 2 slots: Utility x2 2512 | -7/Factory | FarCom data flow suspended 2590 | -7/Factory | Discovered new exit (range 12) 2687 | -7/Factory | Garrison activated, responded to threat 2807 | -7/Factory | Build established: Tank 2910 | -7/Factory | First assault squad dispatched 3116 | -7/Factory | Destroyed 8 combat bots 3226 | -7/Factory | Lost 4 parts (1n2u1w) 3267 | -7/Factory | Build established: Mutant 3276 | -7/Factory | Lost 3 parts (1p1n1u) 3305 | -7/Factory | Core integrity fell below 50% 3383 | -7/Factory | Cargo convoy interrupted 3693 | -7/Factory | Build established: Gunner 3775 | -7/Factory | Identified exit to Factory 3777 | -7/Factory | Entered another Factory area 3777 | -6/Factory | Evolved 2 slots: Power x1, Propulsion x1 4050 | -6/Factory | Build established: Mutant 4127 | -6/Factory | First assault squad dispatched 4156 | -6/Factory | Garrison activated, responded to threat 4221 | -6/Factory | Spotted B-75 Beast 4247 | -6/Factory | Destroyed B-75 Beast 4264 | -6/Factory | Identified exit to Garrison 4270 | -6/Factory | Entered Garrison 4294 | -6/Garrison | AWS/Thermal suddenly broke down 4470 | -6/Garrison | Triggered checkpoint 4526 | -6/Garrison | Triggered checkpoint 4582 | -6/Garrison | Triggered checkpoint 4660 | -6/Garrison | Lost 5 parts (1p3n1u) 4672 | -6/Garrison | Destroyed 8 combat bots 4732 | -6/Garrison | Discovered new exit (range 14) 4756 | -6/Garrison | Installed Relay Interface Framework 4780 | -6/Garrison | Triggered checkpoint 4798 | -6/Garrison | Garrison Relay disabled 4899 | -6/Garrison | Learned Factory security intel 4899 | -6/Garrison | Identified exit to Factory 4966 | -6/Garrison | Build established: Scavenger-Mutant 4983 | -6/Garrison | Entered Factory 5051 | -6/Factory | Identified exit to Garrison 5051 | -6/Factory | Entered Garrison 5059 | -6/Garrison | Discovered new exit (range 78) 5059 | -6/Garrison | Discovered new exit (range 90) 5059 | -6/Garrison | Discovered new exit (range 43) 5113 | -6/Garrison | Core integrity fell below 50% 5148 | -6/Garrison | Rescued a captive Derelict 5150 | -6/Garrison | Rescued a captive Derelict 5193 | -6/Garrison | Lost 3 parts (1p2u) 5227 | -6/Garrison | Triggered checkpoint 5237 | -6/Garrison | Found embedded Infiltrators 5249 | -6/Garrison | Garrison Relay disabled 5293 | -6/Garrison | Build established: Scavenger-Gladiator 5337 | -6/Garrison | Triggered checkpoint 5343 | -6/Garrison | Triggered checkpoint 5406 | -6/Garrison | Expanded RIF knowledge: Program Shield 5437 | -6/Garrison | Triggered checkpoint 5449 | -6/Garrison | Garrison Relay disabled 5527 | -6/Garrison | Triggered checkpoint 5581 | -6/Garrison | Triggered checkpoint 5595 | -6/Garrison | Garrison Relay disabled 5769 | -6/Garrison | Triggered checkpoint 5925 | -6/Garrison | Garrison Relay disabled 6008 | -6/Garrison | Entered Factory 6008 | -5/Factory | Accompanied by 3 allies 6008 | -5/Factory | Evolved 2 slots: Utility x2 6085 | -5/Factory | Build established: Bothacker-Gladiator 6230 | -5/Factory | Fabricated Adv. Cryofiber Web? 6233 | -5/Factory | Found Prototype Launcher 6233 | -5/Factory | Identified Tesla Bomb Launcher 6263 | -5/Factory | Discovered new exit (range 16) 6434 | -5/Factory | Identified exit to Garrison 6435 | -5/Factory | Entered Garrison 6435 | -5/Garrison | Accompanied by 3 allies 6495 | -5/Garrison | Triggered checkpoint 6604 | -5/Garrison | Spotted B-75 Beast 6623 | -5/Garrison | Triggered checkpoint 6629 | -5/Garrison | Triggered checkpoint 6662 | -5/Garrison | Lost 4 allies 6677 | -5/Garrison | Lost 7 parts (2p3n2u) 6719 | -5/Garrison | Destroyed 8 combat bots 6771 | -5/Garrison | Expanded RIF knowledge: Signal Jamming 6780 | -5/Garrison | Garrison Relay disabled 6805 | -5/Garrison | Triggered checkpoint 6807 | -5/Garrison | Core integrity fell below 50% 6855 | -5/Garrison | Lost 9 parts (1p3n3u2w) 6874 | -5/Garrison | System corruption reached 10% 6946 | -5/Garrison | Spotted B-75 Beast 6946 | -5/Garrison | Spotted B-75 Beast 6961 | -5/Garrison | Triggered checkpoint 7076 | -5/Garrison | Core integrity fell below 20% 7130 | -5/Garrison | Lost 4 parts (2u2w) 7144 | -5/Garrison | Destroyed by B-75 Beast with Heavy Plasma Cannon Last Messages --------------- 07102_ Acquired Hvy. Assault Cannon. 07102_ B-75 Beast misfires. 07103_ Slug penetrates B-75 Beast. 07107_ System corrupted: Matter fused (-8). 07107_ B-75 Beast Rnf. Deuterium Engine blasted off. 07115_ Flexi-carbon Leg blasted off. 07119_ Slug penetrates B-75 Beast. 07122_ System corrupted: Matter fused (-9). 07123_ Slug penetrates B-75 Beast. 07123_ Destroyed Med. Reflective Plating. 07127_ B-75 Beast Imp. Cooling System blasted off. 07127_ Slug penetrates Wall. 07131_ Slug penetrates B-75 Beast. 07135_ B-75 Beast Imp. Medium Treads blasted off. 07137_ IEJFE>LNSSWEGGUMUZ=R|WK&I 07139_ Knocked back. 07139_ System corrupted: Hvy. Assault Cannon jammed. 07140_ Acquired 7 matter. 07143_ Slug penetrates B-75 Beast. 07143_ Destroyed Lyr. Medium Armor Plating. Map ----- +----------------------------------------------------+ | | | | | | | | | | | | | | | | | | | | | | | | | | | | | ?????????????????????????????????????????????????? | | ?????????????????????????????????????????????????? | | ?????????????????????????????????????????????????? | | ?????????????????????????????????????????????????? | | ?????????????????????????????????????????????????? | | ?????????????????????????????????????????????????? | | ?????????????????????????????????????????????????? | | ?????????????????????????????????????????????????? | | ?????????????????????????????????????????????????? | | ?????????????????????????????????????????????????? | | ???????????????????########??????????????????????? | | ???????????????????# %@#??????????????????????? | | ???????????????????# %= #??????????????????????? | | ???????????????????# ]% #??????????????????????? | | ??????????????????#; ] ";#?????????????????????? | | ??????????????????#; "##?????????????????????? | | ??????????????????## %%#??????????????????????? | | ???????????????????#BB;;###??????????????????????? | | ??????????????????#%BB;####??????????????????????? | | ??????????????????#%%## #??????????????????????? | | ??????????????#####;;## #??????????????????????? | | ??????????????# #??????????????????????? | | ??????????????# #??????????????????????? | | ??????????????# ##########??????????????????????? | | ??????????????# #???????????????????????????????? | | ??????????????# #???????????????????????????????? | | ??????????????# #???????????????????????????????? | | ??????????????# #???????????????????????????????? | | ??????????????# #???????????????????????????????? | | ??????????????# #???????????????????????????????? | | ??????????????# ########????????????????????????? | | ??????????????# ##""! "#????????????????????????? | | ??????????????# ###!! ##????????????????????????? | | ???############**""#% !#######???????????????????? | | ???# == % ! ! #???????????????????? | | ???# %%* =% ^ #???????????????????? | +----------------------------------------------------+ Best States ------------- Heat Dissipation 97 Energy Generation 31 Energy Capacity 315 Matter Stores 300 Matter Capacity 300 Sight Range 16 Terrain Scan Density 10 Armor Coverage 600 Phase Shifting 5 Evasion (%) 64 Melee Accuracy 6 Target Analysis 5 Recoil Reduction 3 Energy Filtering 50 Relay Coupler Types 5 Relay Coupler Value 190 Item Schematics ----------------- None Robot Schematics ------------------ None Fabricated ------------ Adv. Cryofiber Web | x2 | -5/Factory | Preloaded Alien Tech Used ----------------- None Achievements -------------- None Challenges ------------ None Game ------ Seed TacticalBackupMembrane Manual? 0 Play Time 00:54:58 Cumulative 906.5 hours Start 2024.08.30 @ 11:03:02 End 2024.08.30 @ 12:02:19 Sessions 1 Manual Loads 0 Difficulty Rogue Special Mode None Game No. 1094 Rogue 814 Adventurer 124 Explorer 156 Win Type - Total 39 Types 28/0/8/1/1/0/0/1/0 Lore% 79 Gallery% 89 Achievement% 78 Wizard Run 0 Options --------- Layout 0 ASCII 0 Keyboard 1 Movement Numpad Keybinds 0 Fullscreen 2 Font 18/X11 Map View 76x50 Zoom Use 0% Tactical HUD 1 Map Filters NONE Filters NONE Steam 1 RUN: e78648e9-b217-45b0-a30b-a51bc0222cf5